fUSD/lending_fUSD_20260418
["ID","MTS","AMOUNT","RATE_DAILY","PERIOD"]
[420665259,1776449448055,-150.68563301,0.00010274,2]
[420665260,1776449448064,-298.0539811,0.00010274,2]
[420665261,1776449448075,-160.84763975,0.00010274,2]
[420665262,1776449448085,-153.49925976,0.00010274,2]
[420665263,1776449448095,-152.88062369,0.00010274,2]
[420665264,1776449448104,-150.68870467,0.00010274,2]
[420665265,1776449448114,-150.0,0.00010274,2]
[420665266,1776449448123,-253.48247859,0.00010274,2]
[420665267,1776449448133,-153.80598328,0.00010274,2]
[420665268,1776449448143,-150.0,0.00010274,2]
[420665269,1776449448153,-2000.0,0.00010274,2]
[420665270,1776449448164,-156.27,0.00010274,2]
[420665271,1776449448174,-166.74001717,0.00010274,2]
[420665272,1776449448184,-150.0,0.00010299,2]
[420665273,1776449448194,-236193.39565488,0.000103,2]
[420665274,1776449448206,-151.0,0.000103,2]
[420665275,1776449448216,-143185.42006085,0.000103,2]
[420665276,1776449448226,-151.0,0.000103,2]
[420665277,1776449448237,-151.0,0.000103,2]
[420665278,1776449448249,-150.0,0.0001032,2]
[420665279,1776449448260,-1600.0,0.0001032,2]
[420665280,1776449448270,-152.0,0.00010334,3]
[420665281,1776449448281,-500.0,0.00010356,2]
[420665282,1776449448290,-1116.0,0.00010369,2]
[420665283,1776449448300,-599.60298507,0.00010451,2]
[420665284,1776449448309,-670.58624095,0.00010451,2]
[420665285,1776449448319,-1536.04360649,0.00010452,2]
[420665286,1776449448328,-209.40437684,0.00010452,2]
[420665287,1776449448339,-225.18697532,0.00010452,2]
[420665288,1776449448349,-151.0,0.00010475,2]
[420665289,1776449448358,-151.0,0.00010475,2]
[420665290,1776449448367,-999.99,0.00010475,2]
[420665291,1776449448378,-9999.99,0.00010475,2]
[420665292,1776449448387,-150.99,0.00010475,2]
[420665293,1776449448397,-1192.57,0.00010475,2]
[420665294,1776449448407,-984.38,0.00010475,2]
[420665295,1776449448416,-299.99,0.00010475,2]
[420665296,1776449448427,-9999.99,0.00010475,2]
[420665297,1776449448436,-9999.99,0.00010475,2]
[420665298,1776449448447,-160.0,0.000105,2]
[420665299,1776449448457,-370.0,0.000105,5]
[420665300,1776449448468,-200.0,0.00010548,2]
[420665301,1776449448478,-150.0,0.0001062,2]
[420665302,1776449448488,-2900.0,0.0001063,2]
[420665303,1776449448498,-21000.93442697,0.000107,2]
[420665304,1776449448507,-291.61,0.000107,2]
[420665305,1776449448517,-291.18,0.000107,2]
[420665306,1776449448527,-291.18,0.000107,2]
[420665307,1776449448538,-156.27,0.00010788,2]
[420665308,1776449448547,-10000.0,0.000108,2]
[420665309,1776449448557,-2854.769,0.00010859,2]
[420665310,1776449448567,-4013.05162103,0.000109,2]
[420665311,1776449448577,-4013.05162098,0.000109,2]
[420665312,1776449448587,-4013.05162098,0.000109,2]
[420665313,1776449448597,-4013.05162098,0.000109,2]
[420665314,1776449448606,-4013.05162098,0.000109,2]
[420665315,1776449448616,-4013.05162098,0.000109,2]
[420665316,1776449448626,-3000.0,0.00010904,2]
[420665317,1776449448636,-1116.0,0.00010915,2]
[420665318,1776449448647,-150.0,0.0001092,2]
[420665319,1776449448657,-4609.0,0.00010921,2]
[420665320,1776449448668,-163.0,0.00010958,2]
[420665321,1776449448678,-171.0,0.00010958,2]
[420665322,1776449448687,-2000.0,0.00010959,2]
[420665323,1776449448697,-200.0,0.00010959,2]
[420665324,1776449448707,-200.0,0.00010959,2]
[420665325,1776449448717,-200.0,0.00010959,2]
[420665326,1776449448728,-500.0,0.00010959,2]
[420665327,1776449448739,-150.0,0.00010959,2]
[420665328,1776449448749,-150.0,0.00010959,2]
[420665329,1776449448760,-800.0,0.00010959,2]
[420665330,1776449448772,-800.0,0.00010959,2]
[420665331,1776449448783,-151.0,0.00010959,2]
[420665332,1776449448792,-151.0,0.00010959,2]
[420665333,1776449448802,-151.0,0.00010959,2]
[420665334,1776449448811,-151.0,0.00010959,2]
[420665335,1776449448821,-151.0,0.00010959,2]
[420665336,1776449448830,-151.0,0.00010959,2]
[420665337,1776449448840,-182.23819463,0.00010959,2]
[420665338,1776449448849,-500.0,0.00011,2]
[420665339,1776449448859,-500.0,0.00011,2]
[420665340,1776449448869,-500.0,0.00011,2]
[420665341,1776449448879,-500.0,0.00011,2]
[420665342,1776449448888,-500.0,0.00011,2]
[420665343,1776449448898,-500.0,0.00011,2]
[420665344,1776449448907,-500.0,0.00011,2]
[420665345,1776449448917,-500.0,0.00011,2]
[420665346,1776449448928,-500.0,0.00011,2]
[420665347,1776449448938,-500.0,0.00011,2]
[420665348,1776449448947,-500.0,0.00011,2]
[420665349,1776449448957,-500.0,0.00011,2]
[420665350,1776449448966,-500.0,0.00011,2]
[420665351,1776449448978,-500.0,0.00011,2]
[420665352,1776449448987,-500.0,0.00011,2]
[420665353,1776449448996,-500.0,0.00011,2]
[420665354,1776449449007,-500.0,0.00011,2]
[420665355,1776449449016,-500.0,0.00011,2]
[420665356,1776449449026,-500.0,0.00011,2]
[420665357,1776449449035,-500.0,0.00011,2]
[420665358,1776449449045,-500.0,0.00011,2]
[420665359,1776449449054,-500.0,0.00011,2]
[420665360,1776449449064,-500.0,0.00011,2]
[420665361,1776449449073,-500.0,0.00011,2]
[420665362,1776449449084,-500.0,0.00011,2]
[420665363,1776449449094,-500.0,0.00011,2]
[420665364,1776449449104,-500.0,0.00011,2]
[420665365,1776449449114,-500.0,0.00011,2]
[420665366,1776449449123,-481.7255407,0.00011,2]
[420665367,1776449449143,-18.2744593,0.00011,2]
[420665368,1776449449152,-500.0,0.00011,2]
[420665369,1776449449162,-500.0,0.00011,2]
[420665370,1776449449171,-500.0,0.00011,2]
[420665371,1776449449180,-500.0,0.00011,2]
[420665372,1776449449190,-616.08,0.00011,2]
[420665373,1776449449199,-500.0,0.00011,2]
[420665374,1776449449208,-332.13,0.00011,2]
[420665375,1776449449218,-500.0,0.00011,2]
[420665376,1776449449229,-500.0,0.00011,2]
[420665377,1776449449238,-803.99133343,0.00011,2]
[420665378,1776449449249,-1592.87721993,0.00011,2]
[420665379,1776449449260,-217.15233878,0.00011,2]
[420665380,1776449449269,-361.38849827,0.00011,2]
[420665381,1776449449279,-212.46357996,0.00011033,4]
[420665382,1776449449288,-200.0,0.00011096,2]
[420665383,1776449449298,-8163.63046865,0.00011099,2]
[420665384,1776449449307,-8163.63046865,0.00011099,2]
[420665385,1776449449317,-8163.63046865,0.00011099,2]
[420665386,1776449449327,-8163.63046865,0.00011099,2]
[420665387,1776449449337,-8163.63046865,0.00011099,2]
[420665388,1776449449346,-8163.63046865,0.00011099,2]
[420665389,1776449449356,-8163.63046865,0.00011099,2]
[420665390,1776449449366,-8163.63046865,0.00011099,2]
[420665391,1776449449375,-3540.84240123,0.00011099,2]
[420665392,1776449449385,-3540.84240121,0.00011099,2]
[420665393,1776449449394,-3540.84240121,0.00011099,2]
[420665394,1776449449404,-3540.84240121,0.00011099,2]
[420665395,1776449449413,-3540.84240121,0.00011099,2]
[420665396,1776449449423,-3540.84240121,0.00011099,2]
[420665397,1776449449432,-3540.84240121,0.00011099,2]
[420665398,1776449449441,-3540.84240121,0.00011099,2]
[420665399,1776449449451,-151.0,0.00011099,2]
[420665400,1776449449460,-151.0,0.00011099,2]
[420665401,1776449449469,-152.0,0.00011117,4]
[420665402,1776449449479,-153.0,0.0001112,3]
[420665403,1776449449488,-330.68,0.00011135,2]
[420665404,1776449449497,-5500.0,0.000112,4]
[420665405,1776449449507,-150.0,0.0001122,2]
[420665406,1776449449516,-5800.0,0.00011261,2]
[420665407,1776449449525,-4013.05162098,0.00011266,2]
[420665408,1776449449535,-5800.0,0.0001127,2]
[420665409,1776449449544,-194.522075,0.00011278,2]
[420665410,1776449449554,-5800.0,0.00011278,2]
[420665411,1776449449563,-5800.0,0.00011287,2]
[420665412,1776449449573,-151.0,0.00011287,2]
[420665413,1776449449582,-6800.0,0.000113,4]
[420665414,1776449449594,-2000.0,0.00011301,2]
[420665415,1776449449604,-156.27,0.00011301,2]
[420665416,1776449449614,-1964.18,0.00011314,2]
[420665417,1776449449624,-1801.2,0.00011314,2]
[420665418,1776449449634,-151.0,0.00011315,2]
[420665419,1776449449643,-158.7175526,0.0001133,2]
[420665420,1776449449653,-5800.0,0.0001136,2]
[420665421,1776449449662,-5800.0,0.00011368,2]
[420665422,1776449449672,-391.05830155,0.00011368,2]
[420665423,1776449449686,-5408.94169845,0.00011368,2]
[420665424,1776449449696,-5800.0,0.00011368,2]
[420665425,1776449449706,-5800.0,0.00011377,2]
[420665426,1776449449715,-5800.0,0.00011377,2]
[420665427,1776449449724,-5800.0,0.00011377,2]
[420665428,1776449449734,-5800.0,0.00011385,2]
[420665429,1776449449744,-5800.0,0.00011385,2]
[420665430,1776449449753,-5800.0,0.00011385,2]
[420665431,1776449449764,-1300.0,0.000114,4]
[420665432,1776449449775,-154.0,0.00011403,3]
[420665433,1776449449785,-500.0,0.00011407,2]
[420665434,1776449449795,-500.0,0.00011407,2]
[420665435,1776449449805,-500.0,0.00011407,2]
[420665436,1776449449815,-500.0,0.00011407,2]
[420665437,1776449449825,-500.0,0.00011407,2]
[420665438,1776449449835,-500.0,0.00011407,2]
[420665439,1776449449846,-500.0,0.00011407,2]
[420665440,1776449449855,-500.0,0.00011407,2]
[420665441,1776449449865,-500.0,0.00011407,2]
[420665442,1776449449876,-500.0,0.00011407,2]
[420665443,1776449449886,-500.0,0.00011407,2]
[420665444,1776449449896,-500.0,0.00011407,2]
[420665445,1776449449907,-500.0,0.00011407,2]
[420665446,1776449449916,-500.0,0.00011407,2]
[420665447,1776449449927,-500.0,0.00011407,2]
[420665448,1776449449936,-500.0,0.00011407,2]
[420665449,1776449449946,-500.0,0.00011407,2]
[420665450,1776449449955,-500.0,0.00011407,2]
[420665451,1776449449964,-500.0,0.00011407,2]
[420665452,1776449449974,-3540.84240121,0.00011407,2]
[420665453,1776449449985,-8163.63046865,0.00011407,2]
[420665454,1776449449995,-1116.0,0.0001149,2]
[420665455,1776449450004,-13522.95947626,0.000115,2]
[420665456,1776449450350,-3496.19267394,0.000115,2]
[420665457,1776449450360,-1300.0,0.000115,4]
[420665458,1776449450370,-2312.66066787,0.00011507,2]
[420665459,1776449450389,-2583.95933213,0.00011507,2]
[420665460,1776449450399,-3015.59,0.00011507,2]
[420665461,1776449450408,-235.93802367,0.00011515,2]
[420665462,1776449450419,-150.0,0.0001152,2]
[420665463,1776449450428,-1651.81367706,0.00011548,2]
[420665464,1776449450438,-225.18697532,0.00011548,2]
[420665465,1776449450448,-175.68,0.00011569,2]
[420665466,1776449450458,-41.02463251,0.000116,4]
[420665467,1776449450472,-1258.97536749,0.000116,4]
[420665468,1776449450483,-300.0,0.00011625,2]
[420665469,1776449450492,-300.0,0.00011625,2]
[420665470,1776449450501,-5870.92463251,0.00011626,2]
[420665471,1776449450518,-1508.949995,0.00011626,2]
[420665472,1776449450529,-5812.81537249,0.00011626,2]
[420665473,1776449450539,-19171.13,0.00011626,2]
[420665474,1776449450548,-31562.12277544,0.00011626,2]
[420665475,1776449527441,500.0,7.221e-05,2]
[420665476,1776449586931,153.0,7.221e-05,3]
[420665478,1776449645684,153.0,7.221e-05,3]
[420665479,1776449674362,160.0,7.221e-05,3]
[420665481,1776449707985,155.0,7.221e-05,3]
[420665482,1776449712166,154.0,7.221e-05,3]
[420665483,1776449825846,154.0,7.221e-05,3]
[420665484,1776449886806,154.0,7.221e-05,3]
[420665485,1776449945313,154.0,7.221e-05,3]
[420665486,1776449992901,160.0,7.221e-05,3]
[420665487,1776450005905,154.0,7.221e-05,3]
[420665488,1776450012837,154.0,7.221e-05,3]
[420665489,1776450131284,154.0,7.221e-05,3]
[420665490,1776450131896,154.0,7.221e-05,3]
[420665491,1776450142490,10000.0,8.2e-05,10]
[420665492,1776450165535,9645.0,8.2e-05,10]
[420665493,1776450187538,154.0,7.221e-05,3]
[420665496,1776450245177,154.0,7.221e-05,3]
[420665498,1776450291993,160.0,7.221e-05,3]
[420665499,1776450307743,154.0,7.221e-05,3]
[420665500,1776450367539,154.0,7.221e-05,3]
[420665501,1776450427387,155.0,7.221e-05,3]
[420665502,1776450608492,154.0,7.221e-05,3]
[420665503,1776450621491,160.0,7.221e-05,3]
[420665512,1776450632897,-994.3940699,7.358e-05,2]
[420665513,1776450632915,-100.6059301,7.358e-05,2]
[420665514,1776450632924,-300.0,7.358e-05,2]
[420665515,1776450632933,-584.59781776,7.358e-05,2]
[420665516,1776450632944,-615.40218224,7.358e-05,2]
[420665517,1776450632954,-300.0,7.358e-05,2]
[420665518,1776450632963,-150.0,7.358e-05,2]
[420665519,1776450632973,-247.0,7.358e-05,2]
[420665520,1776450632982,-1273.64988025,7.359e-05,2]
[420665521,1776450632994,-971.91375989,7.359e-05,2]
[420665522,1776450633005,-6127.228,7.359e-05,2]
[420665523,1776450633016,-717.70637924,7.359e-05,2]
[420665524,1776450633027,-11118.3,7.359e-05,2]
[420665525,1776450633050,-1159.94357071,7.359e-05,2]
[420665526,1776450633066,-3459.21954555,7.359e-05,2]
[420665527,1776450633077,-2434.79182097,7.359e-05,2]
[420665528,1776450633092,-675.39141624,7.359e-05,2]
[420665529,1776450633104,-41857.22602715,7.359e-05,2]
[420665530,1776450633114,-500.0,7.386e-05,2]
[420665531,1776450633123,-250.0,7.457e-05,2]
[420665532,1776450633133,-250.0,7.457e-05,2]
[420665533,1776450633142,-675.37550725,7.459e-05,2]
[420665534,1776450633151,-675.37550725,7.459e-05,2]
[420665535,1776450633160,-675.37550725,7.459e-05,2]
[420665536,1776450633170,-675.37550725,7.459e-05,2]
[420665537,1776450633179,-675.37550725,7.459e-05,2]
[420665538,1776450633189,-675.37550725,7.459e-05,2]
[420665539,1776450633198,-675.37550725,7.459e-05,2]
[420665540,1776450633208,-675.37550725,7.459e-05,2]
[420665541,1776450633217,-675.37550725,7.459e-05,2]
[420665542,1776450633227,-675.37550725,7.459e-05,2]
[420665543,1776450633236,-675.37550725,7.459e-05,2]
[420665544,1776450633246,-675.37550725,7.459e-05,2]
[420665545,1776450633255,-675.37550725,7.459e-05,2]
[420665546,1776450633265,-675.37550725,7.459e-05,2]
[420665547,1776450633274,-675.37550725,7.459e-05,2]
[420665548,1776450633284,-675.37550725,7.459e-05,2]
[420665549,1776450633293,-675.37550725,7.459e-05,2]
[420665550,1776450633303,-675.37550725,7.459e-05,2]
[420665551,1776450633312,-675.37550725,7.459e-05,2]
[420665552,1776450633321,-675.37550725,7.459e-05,2]
[420665553,1776450633331,-675.37550725,7.459e-05,2]
[420665554,1776450633340,-675.37550725,7.459e-05,2]
[420665555,1776450633349,-675.37550725,7.459e-05,2]
[420665556,1776450633359,-675.37550725,7.459e-05,2]
[420665557,1776450633368,-675.37550725,7.459e-05,2]
[420665558,1776450633378,-675.37550725,7.459e-05,2]
[420665559,1776450633387,-675.37550725,7.459e-05,2]
[420665560,1776450633397,-675.37550725,7.459e-05,2]
[420665561,1776450633406,-675.37550725,7.459e-05,2]
[420665562,1776450633417,-675.37550725,7.459e-05,2]
[420665563,1776450633426,-675.37550725,7.459e-05,2]
[420665564,1776450633436,-675.37550725,7.459e-05,2]
[420665565,1776450633445,-675.37550725,7.459e-05,2]
[420665566,1776450633455,-675.37550725,7.459e-05,2]
[420665567,1776450633464,-675.37550725,7.459e-05,2]
[420665568,1776450633473,-675.37550725,7.459e-05,2]
[420665569,1776450633482,-675.37550725,7.459e-05,2]
[420665570,1776450633492,-675.37550725,7.459e-05,2]
[420665571,1776450633502,-675.37550725,7.459e-05,2]
[420665572,1776450633511,-675.37550725,7.459e-05,2]
[420665573,1776450633521,-675.37550725,7.459e-05,2]
[420665574,1776450633531,-675.37550725,7.459e-05,2]
[420665575,1776450633540,-675.37550725,7.459e-05,2]
[420665576,1776450633549,-675.37550725,7.459e-05,2]
[420665577,1776450633558,-675.37550725,7.459e-05,2]
[420665578,1776450633568,-675.37550725,7.459e-05,2]
[420665579,1776450633577,-675.37550725,7.459e-05,2]
[420665580,1776450633587,-675.37550725,7.459e-05,2]
[420665581,1776450633596,-675.37550725,7.459e-05,2]
[420665582,1776450633605,-675.37550725,7.459e-05,2]
[420665583,1776450633615,-1294.10664616,7.459e-05,2]
[420665584,1776450633624,-1294.10664616,7.459e-05,2]
[420665585,1776450633633,-1294.10664616,7.459e-05,2]
[420665586,1776450633643,-1294.10664616,7.459e-05,2]
[420665587,1776450633652,-1294.10664616,7.459e-05,2]
[420665588,1776450633663,-1275.07566607,7.459e-05,2]
[420665589,1776450633672,-1275.07566607,7.459e-05,2]
[420665590,1776450633681,-1275.07566607,7.459e-05,2]
[420665591,1776450633691,-1275.07566607,7.459e-05,2]
[420665592,1776450633700,-1275.07566607,7.459e-05,2]
[420665593,1776450633709,-1275.07566607,7.459e-05,2]
[420665594,1776450633721,-1275.07566607,7.459e-05,2]
[420665595,1776450633731,-1275.07566607,7.459e-05,2]
[420665596,1776450633741,-1275.07566607,7.459e-05,2]
[420665597,1776450633750,-1275.07566607,7.459e-05,2]
[420665598,1776450633760,-1275.07566607,7.459e-05,2]
[420665599,1776450633770,-1275.07566607,7.459e-05,2]
[420665600,1776450633779,-1275.07566607,7.459e-05,2]
[420665601,1776450633788,-1275.07566607,7.459e-05,2]
[420665602,1776450633797,-1275.07566607,7.459e-05,2]
[420665603,1776450633807,-1275.07566607,7.459e-05,2]
[420665604,1776450633816,-1275.07566607,7.459e-05,2]
[420665605,1776450633826,-1275.07566607,7.459e-05,2]
[420665606,1776450633835,-1275.07566607,7.459e-05,2]
[420665607,1776450633844,-1275.07566607,7.459e-05,2]
[420665608,1776450633854,-1275.07566607,7.459e-05,2]
[420665609,1776450633863,-1275.07566607,7.459e-05,2]
[420665610,1776450633872,-1275.07566607,7.459e-05,2]
[420665611,1776450633882,-1275.07566607,7.459e-05,2]
[420665612,1776450633892,-1275.07566607,7.459e-05,2]
[420665613,1776450633901,-1275.07566607,7.459e-05,2]
[420665614,1776450633912,-1275.07566607,7.459e-05,2]
[420665615,1776450633921,-1275.07566606,7.459e-05,2]
[420665616,1776450633931,-1275.07566606,7.459e-05,2]
[420665617,1776450633940,-1275.07566606,7.459e-05,2]
[420665618,1776450633950,-1275.07566606,7.459e-05,2]
[420665619,1776450633960,-1275.07566606,7.459e-05,2]
[420665620,1776450633969,-1275.07566606,7.459e-05,2]
[420665621,1776450633978,-1275.07566603,7.459e-05,2]
[420665622,1776450633988,-500.0,7.459e-05,2]
[420665623,1776450633997,-152.15411963,7.459e-05,2]
[420665624,1776450634007,-234.3039503,7.459e-05,2]
[420665625,1776450634017,-756.72,7.459e-05,2]
[420665626,1776450634027,-150.0,7.46e-05,2]
[420665627,1776450634036,-500.0,7.46e-05,2]
[420665628,1776450634046,-500.0,7.46e-05,2]
[420665629,1776450634056,-500.0,7.46e-05,2]
[420665630,1776450634065,-500.0,7.46e-05,2]
[420665631,1776450634075,-500.0,7.46e-05,2]
[420665632,1776450634084,-500.0,7.46e-05,2]
[420665633,1776450634094,-500.0,7.46e-05,2]
[420665634,1776450634104,-500.0,7.46e-05,2]
[420665635,1776450634113,-500.0,7.46e-05,2]
[420665636,1776450634123,-500.0,7.46e-05,2]
[420665637,1776450634132,-500.0,7.46e-05,2]
[420665638,1776450634141,-500.0,7.46e-05,2]
[420665639,1776450634150,-500.0,7.46e-05,2]
[420665640,1776450634160,-500.0,7.46e-05,2]
[420665641,1776450634169,-500.0,7.46e-05,2]
[420665642,1776450634179,-500.0,7.46e-05,2]
[420665643,1776450634189,-500.0,7.46e-05,2]
[420665644,1776450634199,-500.0,7.46e-05,2]
[420665645,1776450634208,-500.0,7.46e-05,2]
[420665646,1776450634218,-500.0,7.46e-05,2]
[420665647,1776450634228,-500.0,7.46e-05,2]
[420665648,1776450634238,-500.0,7.46e-05,2]
[420665649,1776450634247,-500.0,7.46e-05,2]
[420665650,1776450634257,-500.0,7.46e-05,2]
[420665651,1776450634266,-500.0,7.46e-05,2]
[420665652,1776450634276,-500.0,7.46e-05,2]
[420665653,1776450634286,-500.0,7.46e-05,2]
[420665654,1776450634295,-500.0,7.46e-05,2]
[420665655,1776450634304,-500.0,7.46e-05,2]
[420665656,1776450634314,-500.0,7.46e-05,2]
[420665657,1776450634323,-500.0,7.46e-05,2]
[420665658,1776450634332,-500.0,7.46e-05,2]
[420665659,1776450634342,-500.0,7.46e-05,2]
[420665660,1776450634351,-500.0,7.46e-05,2]
[420665661,1776450634361,-500.0,7.46e-05,2]
[420665662,1776450634370,-500.0,7.46e-05,2]
[420665663,1776450634379,-500.0,7.46e-05,2]
[420665664,1776450634388,-500.0,7.46e-05,2]
[420665665,1776450634398,-500.0,7.46e-05,2]
[420665666,1776450634408,-500.0,7.46e-05,2]
[420665667,1776450634422,-500.0,7.46e-05,2]
[420665668,1776450634431,-500.0,7.46e-05,2]
[420665669,1776450634441,-500.0,7.46e-05,2]
[420665670,1776450634450,-500.0,7.46e-05,2]
[420665671,1776450634459,-500.0,7.46e-05,2]
[420665672,1776450634469,-500.0,7.46e-05,2]
[420665673,1776450634478,-500.0,7.46e-05,2]
[420665674,1776450634487,-500.0,7.46e-05,2]
[420665675,1776450634496,-500.0,7.46e-05,2]
[420665676,1776450634506,-500.0,7.46e-05,2]
[420665677,1776450634515,-500.0,7.46e-05,2]
[420665678,1776450634524,-500.0,7.46e-05,2]
[420665679,1776450634534,-500.0,7.46e-05,2]
[420665680,1776450634543,-500.0,7.46e-05,2]
[420665681,1776450634552,-500.0,7.46e-05,2]
[420665682,1776450634562,-500.0,7.46e-05,2]
[420665683,1776450634571,-500.0,7.46e-05,2]
[420665684,1776450634580,-500.0,7.46e-05,2]
[420665685,1776450634590,-500.0,7.46e-05,2]
[420665686,1776450634600,-500.0,7.46e-05,2]
[420665687,1776450634609,-500.0,7.46e-05,2]
[420665688,1776450634619,-500.0,7.46e-05,2]
[420665689,1776450634628,-500.0,7.46e-05,2]
[420665690,1776450634637,-500.0,7.46e-05,2]
[420665691,1776450634646,-500.0,7.46e-05,2]
[420665692,1776450634655,-500.0,7.46e-05,2]
[420665693,1776450634665,-500.0,7.46e-05,2]
[420665694,1776450634674,-500.0,7.46e-05,2]
[420665695,1776450634684,-500.0,7.46e-05,2]
[420665696,1776450634693,-500.0,7.46e-05,2]
[420665697,1776450634702,-500.0,7.46e-05,2]
[420665698,1776450634712,-500.0,7.46e-05,2]
[420665699,1776450634722,-500.0,7.46e-05,2]
[420665700,1776450634732,-500.0,7.46e-05,2]
[420665701,1776450634741,-500.0,7.46e-05,2]
[420665702,1776450634751,-500.0,7.46e-05,2]
[420665703,1776450634761,-500.0,7.46e-05,2]
[420665704,1776450634772,-500.0,7.46e-05,2]
[420665705,1776450634782,-500.0,7.46e-05,2]
[420665706,1776450634791,-500.0,7.46e-05,2]
[420665707,1776450634801,-500.0,7.46e-05,2]
[420665708,1776450634811,-500.0,7.46e-05,2]
[420665709,1776450634820,-500.0,7.46e-05,2]
[420665710,1776450634829,-500.0,7.46e-05,2]
[420665711,1776450634838,-448.171183,7.46e-05,2]
[420665712,1776450634848,-11325.16,7.48e-05,2]
[420665713,1776450634857,-160.04538329,7.525e-05,2]
[420665714,1776450634866,-160.06827983,7.525e-05,2]
[420665715,1776450634875,-246.60800161,7.525e-05,2]
[420665716,1776450634885,-167.92913361,7.525e-05,2]
[420665717,1776450634894,-500.0,7.525e-05,2]
[420665718,1776450634904,-500.0,7.525e-05,2]
[420665719,1776450634914,-500.0,7.525e-05,2]
[420665720,1776450634923,-500.0,7.525e-05,2]
[420665721,1776450634934,-1000.0,7.559e-05,2]
[420665722,1776450634943,-285.50676789,7.707e-05,2]
[420665723,1776450634952,-756.72,7.733e-05,2]
[420665724,1776450634963,-578.20924308,7.845e-05,2]
[420665725,1776450634973,-1280.88388878,7.845e-05,2]
[420665726,1776450634985,-646.65982734,7.845e-05,2]
[420665727,1776450634994,-500.0,7.845e-05,2]
[420665728,1776450635004,-500.0,7.845e-05,2]
[420665729,1776450635013,-500.0,7.845e-05,2]
[420665730,1776450635023,-500.0,7.845e-05,2]
[420665731,1776450635032,-500.0,7.845e-05,2]
[420665732,1776450635042,-500.0,7.845e-05,2]
[420665733,1776450635051,-174.61919141,7.845e-05,2]
[420665734,1776450635061,-500.0,7.845e-05,2]
[420665735,1776450635071,-500.0,7.845e-05,2]
[420665736,1776450635080,-500.0,7.845e-05,2]
[420665737,1776450635091,-500.0,7.845e-05,2]
[420665738,1776450635102,-500.0,7.845e-05,2]
[420665739,1776450635111,-500.0,7.845e-05,2]
[420665740,1776450635122,-500.0,7.845e-05,2]
[420665741,1776450635132,-500.0,7.845e-05,2]
[420665742,1776450635142,-756.72,8.007e-05,2]
[420665743,1776450635152,-156.0,8.047e-05,2]
[420665744,1776450635162,-1000.0,8.073e-05,2]
[420665745,1776450635171,-1000.0,8.073e-05,2]
[420665746,1776450635180,-1000.0,8.073e-05,2]
[420665747,1776450635190,-193.0,8.094e-05,2]
[420665748,1776450635199,-420.0,8.094e-05,2]
[420665749,1776450635209,-313.0,8.094e-05,2]
[420665750,1776450635218,-1680.0,8.094e-05,2]
[420665751,1776450635227,-255.0,8.094e-05,2]
[420665752,1776450635237,-500.0,8.144e-05,2]
[420665753,1776450635247,-500.0,8.144e-05,2]
[420665754,1776450635256,-1257.731298,8.178e-05,2]
[420665755,1776450635268,-250.0,8.202e-05,2]
[420665756,1776450635277,-1199.0,8.219e-05,2]
[420665757,1776450635287,-2000.0,8.219e-05,2]
[420665758,1776450635297,-222.71,8.219e-05,2]
[420665759,1776450635306,-500.0,8.219e-05,2]
[420665760,1776450635315,-150.0,8.22e-05,2]
[420665761,1776450635325,-756.72,8.281e-05,2]
[420665762,1776450635335,-1328.27659266,8.393e-05,2]
[420665763,1776450635345,-181.08010149,8.393e-05,2]
[420665764,1776450635355,-1199.0,8.493e-05,2]
[420665765,1776450635364,-500.0,8.493e-05,2]
[420665766,1776450635374,-150.0,8.52e-05,2]
[420665767,1776450635383,-756.72,8.555e-05,2]
[420665768,1776450635393,-1500.0,8.621e-05,2]
[420665769,1776450635403,-1500.0,8.621e-05,2]
[420665770,1776450635413,-1000.0,8.621e-05,2]
[420665771,1776450635423,-222.71,8.676e-05,2]